Cogmind - Beta 14 @@@ ROGUE MODE // 2024.08.08 @ 02:20:53 Player: ktur Result: Destroyed by Y-45 Defender with Beam Rifle Performance ------------- Evolutions (0) 0 Regions Visited (3) 600 Robots Destroyed (20) 100 Value Destroyed (552) 552 Prototype IDs (13) 260 Alien Tech Used (0) 0 Bonus (0) 0 TOTAL SCORE: 1512 Bonus ------- None Cogmind --------- Core Integrity 0/250 Matter 279/300 Energy 71/100 System Corruption 1% Temperature Cool (99) Movement Treading (160) Location -9/Recycling Parts ------- > --- POWER (1) -------- Subdweller Power Source > --- PROPULSION (2) --- Light Treads Spiked Treads > --- UTILITY (2) ------ Medium Storage Unit Makeshift System Restoration Module > --- WEAPON (2) ------- Subdweller Beam Cannon (fused) Subdweller Machine Gun > --- INVENTORY (10) --- Subdweller Power Source Meta Core Subdweller Monowheel Subdweller Optics Makeshift Light Armor Plating Medium Laser Subdweller Shrapnel Launcher Subdweller Shrapnel Launcher Datajack Mining Laser Peak State ------------ > --- POWER ------------ Subdweller Power Source > --- PROPULSION ------- Light Treads Spiked Treads > --- UTILITY ---------- Medium Storage Unit Makeshift System Restoration Module > --- WEAPON ----------- Subdweller Beam Cannon Subdweller Machine Gun > --- INVENTORY -------- Meta Core Subdweller Monowheel Subdweller Monowheel Subdweller Optics Makeshift Light Armor Plating Medium Laser Subdweller Shrapnel Launcher Subdweller Shrapnel Launcher Datajack Mining Laser [Rating: 17] Favorites ----------- Power Subdweller Power Source Engine Subdweller Power Source Propulsion Light Treads Treads Light Treads Wheel Subdweller Monowheel Utility Medium Storage Unit Device Seismic Detector Storage Medium Storage Unit Weapon EM Pulse Gun Energy Gun EM Pulse Gun Energy Cannon Subdweller Beam Cannon Ballistic Gun Subdweller Machine Gun Special Weapon Mining Laser Build | -11 -10 -10 -9 ------- Run | Yrd Mat Sub Rec Slots Evolved . | . . . . Power . | . . . . Propulsion . | . . . . Utility . | . . . . Weapon . | . . . . Parts Attached 21 | 8 2 11 . Power 3 | 1 . 2 . Engine 3 | 1 . 2 . Core . | . . . . Reactor . | . . . . Propulsion 5 | 2 . 3 . Treads 4 | 2 . 2 . Leg . | . . . . Wheel 1 | . . 1 . Hover . | . . . . Flight . | . . . . Utility 4 | 2 1 1 . Device 2 | 1 . 1 . Storage 2 | 1 1 . . Processor . | . . . . Hackware . | . . . . Protection . | . . . . Artifact . | . . . . Weapon 9 | 3 1 5 . Energy Gun 5 | 3 1 1 . Energy Cannon 2 | . . 2 . Ballistic Gun 1 | . . 1 . Ballistic Cannon . | . . . . Launcher . | . . . . Special Weapon 1 | . . 1 . Impact Weapon . | . . . . Slashing Weapon . | . . . . Piercing Weapon . | . . . . Special Melee Weapon . | . . . . Unidentified Prototypes . | . . . . Corrupted Parts 2 | . . 2 . System Corruption 8 | . . 8 . Parts Lost 4 | . . 4 . Power 1 | . . 1 . Propulsion 1 | . . 1 . Utility 1 | . . 1 . Weapon 1 | . . 1 . Highest Loss Streak 2 | . . 2 . To Critical Strikes . | . . . . Average Slot Usage (%) 92 | . 100 89 100 Engine 13 | . 14 13 14 Treads 27 | . 28 27 28 Device 7 | . 14 5 14 Storage 14 | . 14 14 14 Energy Gun 10 | . 28 3 . Energy Cannon 10 | . . 15 14 Ballistic Gun 6 | . . 9 14 Peak Build Rating 17 | 7 7 17 17 Average Rating 10 | 5 7 12 17 On Entrance 7 | . 7 7 17 Naked Turns . | . . . . Heaviest Build 32 | 14 20 32 . Greatest Support 40 | 40 40 40 . Greatest Overweight (x) 1 | . . 1 . Average Overweight (x) . | . . . . Largest Inventory Capacity 10 | 8 10 10 10 Average Capacity 9 | 7 9 10 10 Most Carried 10 | 5 8 10 10 Average Carried 8 | 2 6 9 10 Final Capacity 10 | 8 10 10 10 Final Carried 10 | 5 8 10 10 Class Distribution -------------------- 100% | Mutant Dominant Class ---------------- Mutant | -10/Materials Mutant | -10/Subcaves Mutant | -9/Recycling Resources | -11 -10 -10 -9 ----------- Run | Yrd Mat Sub Rec Matter Collected 511 | 270 22 219 . Remotely . | . . . . Salvage Created 736 | 129 71 536 . Parts 48 | 7 9 32 . Haulers Intercepted . | . . . . Recyclers Shooed 1 | 1 . . . Parts Field Recycled . | . . . . Retrieved Matter . | . . . . Parts Self-Destructed 3 | . . 3 . Prevented . | . . . . Kills | -11 -10 -10 -9 ------- Run | Yrd Mat Sub Rec Combat Hostiles Destroyed 15 | . 3 12 . Guns 7 | . 3 4 . Cannons 6 | . . 6 . Classes Destroyed 7 | 2 3 2 . Builder 1 | . 1 . . Tunneler 2 | 2 . . . Recycler 1 | 1 . . . Operator 1 | . 1 . . Swarmer 3 | . 3 . . Grunt 2 | . . 2 . Subdweller 10 | . . 10 . Best Kill Streak 3 | 3 3 3 . Combat Bots Only 3 | . 3 2 . Max Kills in Single Turn 1 | 1 1 1 . Gunslinging . | . . . . Exploded . | . . . . Melee . | . . . . Uniques/NPCs Destroyed . | . . . . Combat | -11 -10 -10 -9 -------- Run | Yrd Mat Sub Rec Hostile Shots Fired 79 | . 19 55 5 Missed 13 | . 1 11 1 Damage Taken 1112 | . 144 911 57 Core 255 | . 35 206 14 Absorbed by Shields . | . . . . Core Remaining (%) 100 | 100 . . . Volleys Fired 81 | 8 8 62 3 Largest 2 | 2 2 2 2 Hottest 160 | 80 80 160 110 Shots Fired 118 | 9 16 88 5 Gun 64 | 9 16 37 2 Cannon 52 | . . 49 3 Launcher . | . . . . Special 2 | . . 2 . Kinetic 24 | . . 22 2 Thermal 61 | 7 . 51 3 Explosive . | . . . . Electromagnetic 33 | 2 16 15 . Robot Hit Streak 16 | 4 4 16 4 Robot Miss Streak 3 | 2 3 2 1 Penetration Max . | . . . . Secondary Targets 1 | . 1 . . Max Gunslinging Chain 1 | . 1 . . Shots Hit Robots 76 | 7 8 57 4 Core Hits 24 | 4 4 15 1 Critical Kills 2 | . . 2 . Critical Parts Destroyed 1 | . . 1 . Critical Strikes 4 | . . 4 . Meltdown 2 | . . 2 . Destroy 1 | . . 1 . Corrupt 1 | . . 1 . Melee Attacks . | . . . . Impact . | . . . . Slashing . | . . . . Piercing . | . . . . Sneak Attacks . | . . . . Combat Hostiles . | . . . . Follow-up Attacks . | . . . . Damage Inflicted 1641 | 104 115 1327 95 Guns 573 | 79 101 354 39 Cannons 1029 | . . 973 56 Explosions 22 | 22 . . . Melee . | . . . . Ramming 17 | 3 14 . . Kinetic 268 | . . 229 39 Thermal 1105 | 76 . 973 56 Explosive . | . . . . Electromagnetic 251 | 25 101 125 . Impact . | . . . . Slashing . | . . . . Piercing . | . . . . Highest Corruption 8 | . . 8 1 Average Corruption 5 | . . 5 1 Corruption Purged 7 | . . 7 . Corruption Blocked . | . . . . Effects 38 | . . 37 1 Message Errors 10 | . . 10 . Matter Fused 10 | . . 10 . Heat Flow Errors 3 | . . 3 . Energy Discharges 4 | . . 4 . Parts Fused 1 | . . 1 . Data Loss (minor) 4 | . . 4 . Data Loss (major) 1 | . . 1 . Misfires 2 | . . 2 . Weapon Failures 3 | . . 2 1 Overload Shots . | . . . . Overflow Damage 3 | . . 3 . Projectiles 3 | . . 3 . Explosions . | . . . . Melee . | . . . . Knockbacks . | . . . . Impact . | . . . . Kinetic . | . . . . Secondary . | . . . . Self-Inflicted Damage . | . . . . Shots . | . . . . Rammed 2 | 1 1 . . Targets Rammed 3 | 1 2 . . Kicked . | . . . . Crushed 1 | . 1 . . Highest Temperature 336 | 18 108 336 90 Average Temperature 63 | 12 47 72 55 Received Heat Transfer 609 | . . 591 18 Effects 1 | . . 1 . Damage (minor) 1 | . . 1 . Siege Activations . | . . . . Robots Corrupted . | . . . . Combat Hostiles . | . . . . Parts Fried 1 | 1 . . . Impact Corruptions . | . . . . Robots Melted 2 | . . 2 . Combat Hostiles 2 | . . 2 . Parts Melted 7 | . . 7 . Heat Transferred 1544 | 175 . 1295 74 Parts Sabotaged . | . . . . Parts Stolen . | . . . . Parts Stripped . | . . . . Power Chain Reactions 1 | 1 . . . Alert | -11 -10 -10 -9 ------- Run | Yrd Mat Sub Rec Peak Influence 99 | 15 99 . 25 Initial 24 | . 9 . 24 Average 11 | 3 12 . 25 Maximum Alert Level . | . . . . Low Security (%) 100 | 100 100 . 100 Level 1 . | . . . . Level 2 . | . . . . Level 3 . | . . . . Level 4 . | . . . . Level 5 . | . . . . High Security . | . . . . Max Security . | . . . . Squads Dispatched . | . . . . Investigation . | . . . . Extermination . | . . . . Reinforcement . | . . . . Assault . | . . . . Garrison . | . . . . Intercept . | . . . . Searches Triggered . | . . . . Construction Impeded . | . . . . Haulers Reinforced . | . . . . Active Scanning Responses . | . . . . Cargo Convoy Interrupts . | . . . . Stealth | -11 -10 -10 -9 --------- Run | Yrd Mat Sub Rec Distress Signals . | . . . . Communications Jammed . | . . . . Distress Signals . | . . . . Times Spotted 18 | . 4 13 1 Peak Tracking Total 3 | . 3 2 1 Tactical Retreats . | . . . . Traps | -11 -10 -10 -9 ------- Run | Yrd Mat Sub Rec Traps Triggered . | . . . . Indirectly . | . . . . Trap Hack Attempts . | . . . . Triggered . | . . . . Disarmed . | . . . . Reprogrammed . | . . . . Reused . | . . . . Traps Extracted . | . . . . Installed . | . . . . Triggered . | . . . . Machines | -11 -10 -10 -9 ---------- Run | Yrd Mat Sub Rec Machines Disabled 1 | . . 1 . Max in Single Turn 1 | . . 1 . Machines Repaired . | . . . . Machines Dismantled . | . . . . Machines Sabotaged . | . . . . Overloaded Fab Kills . | . . . . Hacking | -11 -10 -10 -9 --------- Run | Yrd Mat Sub Rec Machines Accessed 4 | . 3 1 . Terminals 3 | . 3 . . Fabricators . | . . . . Repair Stations . | . . . . Recycling Units . | . . . . Scanalyzers . | . . . . Garrison Access . | . . . . Total Hacks 7 | . 6 1 . Successful 4 | . 3 1 . Failed 3 | . 3 . . Catastrophic 1 | . 1 . . Database Lockouts . | . . . . Manual 4 | . 4 . . Terminals 6 | . 6 . . Fabricators . | . . . . Repair Stations . | . . . . Recycling Units . | . . . . Scanalyzers . | . . . . Garrison Access . | . . . . Terminal Hacks 4 | . 3 1 . Robot Analysis 1 | . 1 . . Prototype ID Bank 1 | . 1 . . Locate Traps 1 | . 1 . . Derelict Proto ID Bank 1 | . . 1 . Fabricator Hacks . | . . . . Repair Station Hacks . | . . . . Recycling Unit Hacks . | . . . . Scanalyzer . | . . . . Garrison Access Hacks . | . . . . Unauthorized Hacks . | . . . . Terminals . | . . . . Fabricators . | . . . . Repair Stations . | . . . . Recycling Units . | . . . . Scanalyzers . | . . . . Garrison Access . | . . . . Data Cores Recovered . | . . . . Used . | . . . . Hacking Detections 3 | . 3 . . Full Trace Events . | . . . . Feedback Events . | . . . . Feedback Blocked . | . . . . Robot Schematics Acquired . | . . . . Robots Built . | . . . . Authchips . | . . . . Time . | . . . . Total Robot Build Rating . | . . . . Part Schematics Acquired . | . . . . Parts Built . | . . . . Authchips . | . . . . Time . | . . . . Total Part Build Rating . | . . . . Parts Repaired . | . . . . Time . | . . . . Parts Recycled . | . . . . Recycled Matter . | . . . . Retrieved Matter . | . . . . Retrieved Components . | . . . . Parts Scanalyzed . | . . . . Part Schematics Acquired . | . . . . Parts Damaged . | . . . . Bothacking | -11 -10 -10 -9 ------------ Run | Yrd Mat Sub Rec Used RIF Installer . | . . . . Robots Hacked . | . . . . Non-combat . | . . . . Combat . | . . . . Robot Hacks Applied . | . . . . Relay Couplers Released . | . . . . Fabnet Peak Effective % . | . . . . Robots Rewired . | . . . . Allies Hacked . | . . . . Hacks Repelled . | . . . . Allies | -11 -10 -10 -9 -------- Run | Yrd Mat Sub Rec Total Allies . | . . . . Largest Group . | . . . . Highest-Rated Group . | . . . . Highest-Rated Ally . | . . . . Total Orders . | . . . . Ally Attacks . | . . . . Total Damage . | . . . . Kills . | . . . . Allies Corrupted . | . . . . Allies Melted . | . . . . Intel | -11 -10 -10 -9 ------- Run | Yrd Mat Sub Rec Robot Analysis Total 1 | . 1 . . Derelict Logs Recovered 2 | . . 2 . Drone Launches . | . . . . Drone Recoveries . | . . . . Exploration | -11 -10 -10 -9 ------------- Run | Yrd Mat Sub Rec Turns Passed 2333 | 111 678 1538 6 Spaces Moved 1022 | 51 127 844 . Core 5 | 5 . . . Treads 1001 | 46 127 828 . Legs . | . . . . Wheels 16 | . . 16 . Hover . | . . . . Flight . | . . . . Fastest Speed 50 | 50 160 110 . Average Speed 158 | 149 160 159 . Slowest Speed 240 | 160 160 240 . Overloaded Moves . | . . . . Propulsion Burnouts . | . . . . Robots Hopped . | . . . . Cave-ins Triggered . | . . . . Exploration Rate (%) 19 | 4 30 41 2 Regions Visited 3 Branch Regions 2 Pre-discovered Areas . | . . . . Known Exits Taken 1 | . . 1 . Unknown Exits Taken 2 | 1 1 . . Scrap Searched 10 | . . 10 . Spaces Dug 2 | . . 2 . Terrain Destroyed 5 | 1 . 3 1 Melee . | . . . . Projectile 4 | . . 3 1 AOE 1 | 1 . . . Terrain Rammed . | . . . . Walls Destroyed . | . . . . Machines Disabled . | . . . . Actions | -11 -10 -10 -9 --------- Run | Yrd Mat Sub Rec Total 1608 | 72 584 949 3 Wait 444 | . 442 2 . Move 1020 | 51 126 843 . Hop . | . . . . Pick Up 23 | 5 3 15 . Fast Attach 13 | 7 . 6 . Attach 1 | . . 1 . Detach . | . . . . Swap 7 | 1 2 4 . Drop 17 | . 1 16 . Fire 81 | 8 8 62 3 Melee . | . . . . Ram . | . . . . Kick . | . . . . Crush 2 | . 2 . . Escape Stasis . | . . . . Rewire . | . . . . Trap . | . . . . Miscellaneous . | . . . . Route ------- -11/Scrapyard -10/Materials (discovered 2 exits: [*Min] / *Sub) -10/Subcaves -9/Recycling History --------- Turn | Location | Event 4 | -11/Scrapyard | Discovered new exit (range 15) 112 | -11/Scrapyard | Entered Materials 304 | -10/Materials | Build established: Mutant 488 | -10/Materials | Discovered new exit (range 9) 771 | -10/Materials | Discovered new exit (range 3) 790 | -10/Materials | Entered Subcaves 791 | -10/Subcaves | Ambushed by Subdwellers from Twisted Machinery 895 | -10/Subcaves | Identified exit to Recycling 967 | -10/Subcaves | Visited 4L-MR0's lab 985 | -10/Subcaves | Found Meta Core 1308 | -10/Subcaves | Core integrity fell below 50% 1761 | -10/Subcaves | Disturbed a concealed Subdweller 1908 | -10/Subcaves | Disturbed a concealed Subdweller 1995 | -10/Subcaves | A swath of the cavern ceiling suddenly collapsed 2033 | -10/Subcaves | Learned 2 Materials zone layouts 2102 | -10/Subcaves | Core integrity fell below 20% 2328 | -10/Subcaves | Entered Recycling 2334 | -9/Recycling | Destroyed by Y-45 Defender with Beam Rifle Last Messages --------------- 02099_ Aluminum Leg fries itself beyond repair. 02101_ Critical hit (Burn: +37). 02107_ Unknown Energy Gun fries itself beyond repair. 02113_ Destroyed Particle Gun. 02113_ Destroyed Lgt. Nuclear Core. 02113_ G-47 Trooper destroyed. 02121_ Unknown Device fries itself beyond repair. 02123_ System corrupted: Component data lost. 02157_ Subatomizers dissect the Disposable Heat Sink. 02163_ Acquired 30 matter. 02171_ Mak. System Restoration Module purges 1% system corruption (3%). 02172_ Subatomizers dissect the Disposable Heat Sink. 02179_ Mak. System Restoration Module purges 1% system corruption (2%). 02269_ Mak. System Restoration Module purges 1% system corruption (1%). 02310_ System corrupted: Matter fused (-9). LOCATION=RECYCLING GOAL=ESCAPE 02329_ Y-45 Defender springs to life. 02331_ Sub. Power Source shoots sparks and powers down. 02334_ System corrupted: Sub. Machine Gun jammed. Map ----- +----------------------------------------------------+ | ??????????????????????????????????? | | ??????????????????????????????????? | | ??????????????????????????????????? | | ??????????????????????????????????? | | ??????????????????????????????????? | | ??????????????????????????????????? | | ??????????????????????????????????? | | ??????????????????????????????????? | | ??????????????????????????????????? | | ??????????????????????????????????? | | ??????????????????????????????????? | | ????????#####?????????????????????? | | ???????? ?????????????????????? | | ???????? ?????????????????????? | | ???????? ?????????????????????? | | ???????? ?????????????????????? | | ???????? ?????????????????????? | | ????????# #?????????????????????? | | ????????# ##????????????????????? | | ????????# ""????????????????????? | | ????????# Y?????????????????????? | | ????????+ "?????????????????????? | | ????????# #?????????????????????? | | ????????# ##????????????????????? | | ????????# Y#????????????????????? | | ????????# @ ;#????????????????????? | | ????????# ##????????????????????? | | ????????#####?????????????????????? | | ??????????????????????????????????? | | ??????????????????????????????????? | | ??????????????????????????????????? | | ??????????????????????????????????? | | ??????????????????????????????????? | | ??????????????????????????????????? | | ??????????????????????????????????? | | ??????????????????????????????????? | | ??????????????????????????????????? | | ??????????????????????????????????? | | ??????????????????????????????????? | | | | | | | | | | | | | | | | | | | | | | | +----------------------------------------------------+ Best States ------------- Heat Dissipation 25 Energy Generation 15 Energy Capacity 250 Matter Stores 300 Matter Capacity 300 Sight Range 16 Terrain Scan Density 10 Evasion (%) 40 Recoil Reduction 2 Item Schematics ----------------- None Robot Schematics ------------------ None Fabricated ------------ Nothing Alien Tech Used ----------------- None Achievements -------------- None Challenges ------------ None Game ------ Seed BottomlessModifiedStorm Manual? 0 Play Time 00:08:35 Cumulative 770.9 hours Start 2024.08.08 @ 02:12:16 End 2024.08.08 @ 02:20:53 Sessions 1 Manual Loads 0 Difficulty Rogue Special Mode None Game No. 744 Rogue 744 Adventurer 0 Explorer 0 Win Type - Total 39 Types 14/4/11/2/0/0/5/2/1 Lore% 75 Gallery% 89 Achievement% 84 Wizard Run 0 Options --------- Layout 0 ASCII 0 Keyboard 0 Movement Numpad Keybinds 0 Fullscreen 1 Font 18/Smallcaps Map View 76x50 Zoom Use 0% Tactical HUD 1 Map Filters NONE Filters NONE Steam 1 RUN: 40728f77-6fd5-4759-9e12-354cc4ac0a81